[Event "RLP-ch Rapid 2024"]
[Site "Landau"]
[Date "2024.05.04"]
[Round "3.4"]
[White "Frischmann, Rick"]
[Black "Muranyi, Karl-Jasmin"]
[Result "1-0"]
[ECO "B15"]
[WhiteElo "2355"]
[BlackElo "2338"]
[Annotator "TA"]
[PlyCount "45"]
[EventDate "2024.05.03"]
[EventType "swiss"]
[EventCountry "GER"]
[SourceTitle "playchess.com"]
[Source "ChessBase"]
[SourceQuality "1"]
[TimeControl "900+5"]

{[%evp 10,45,73,73,70,61,106,97,95,88,120,99,92,95,118,95,137,131,140,104,107,113,131,114,127,129,130,117,313,306,369,350,368,316,324,298,495,485]} 1. e4 {[%emt 0:00:03][%cal Be2e4,Be4e5][%mdl 32]} c6 {[%emt 0:00:00]} 2. d4 {[%emt 0:00:01]} d5 {[%emt 0:00:01]} 3. f3 {[%emt 0:00:02]} g6 {[%emt 0:00:02]} 4. Nc3 {[%emt 0:00:05]} Bg7 {[%emt 0:00:01]} 5. Be3 {[%emt 0:00:02]} Nf6 {[%emt 0:00:02]} 6. e5 {[%emt 0:00:32]} Nfd7 {[%emt 0:00:01]} 7. Qd2 {[%emt 0:01:11]} h6 {[%emt 0:00:13][%cal Bh7h6,Bh6h5][%mdl 32]} 8. f4 {[%emt 0:00:07][%cal Oe5e6]} Nb6 {[%emt 0:00:18] White is better.} 9. b3 {[%emt 0:01:04]} Bf5 {[%emt 0:15:12]} 10. h3 {[%emt 0:00:03]} h5 {[%emt 0:00:00]} 11. Nf3 {[%emt 0:00:20]} N8d7 {[%emt 0:00:00]} 12. Bf2 {[%emt 0:00:50]} Nf8 {[%emt 0:00:00]} 13. Rg1 {[%emt 0:00:10]} Qd7 {[%emt 0:00:00]} 14. O-O-O {[%emt 0:01:01]} O-O-O {[%emt 0:00:00]} 15. Ng5 {[%emt 0:00:29]} Qe8 {[%emt 0:00:00]} 16. g4 {[%emt 0:00:11]} Bd7 {[%emt 0:00:00]} 17. a4 {[%emt 0:01:05][%cal Ba2a4,Ba4a5][%mdl 32] White has more active pieces. The black rooks are passive.} Kb8 {[%emt 0:00:00]} 18. a5 {[%emt 0:00:08]} Nc8 {[%emt 0:00:00] [#] This costs Black the game.} (18... Na8 $16 19. Na4 hxg4) 19. Na4 $18 {[%emt 0:00:11]} Ne6 {[%emt 0:00:00]} 20. Nxe6 {[%emt 0:00:32]} Bxe6 {[%emt 0:00:00] Black is weak on the dark squares} 21. Qb4 {[%emt 0:00:26]} Rd7 {[%emt 0:00:00]} 22. Kb2 {[%emt 0:02:37]} Qd8 $2 {[%emt 0:00:00] [#]} (22... hxg4 23. hxg4 Rh2) 23. f5 $1 {[%emt 0:00:06][%mdl 512] Weighted Error Value: White=0.12 (very precise) /Black=0.45.  Loses game:     	---       	Black=1      Mistake:       	---       	Black=1      Inaccurate:     	---       	Black=3      OK:         	White=6     	Black=3} 1-0

[Event "RLP-ch Rapid 2024"]
[Site "Landau"]
[Date "2024.05.04"]
[Round "3.5"]
[White "Schenderowitsch, Michael"]
[Black "Bruch, Jochen"]
[Result "0-1"]
[ECO "A61"]
[WhiteElo "2233"]
[BlackElo "2181"]
[Annotator "RC"]
[PlyCount "104"]
[EventDate "2024.05.03"]
[EventType "swiss"]
[EventCountry "GER"]
[SourceTitle "playchess.com"]
[Source "ChessBase"]
[SourceQuality "1"]
[TimeControl "900+5"]

1. Nf3 {[%emt 0:00:02]} Nf6 {[%emt 0:00:01]} 2. d4 {[%emt 0:00:04]} e6 {[%emt 0:00:02]} 3. c4 {[%emt 0:00:02]} c5 {[%emt 0:00:02]} 4. d5 {[%emt 0:00:01]} exd5 {[%emt 0:00:01]} 5. cxd5 {[%emt 0:00:02]} d6 {[%emt 0:00:01]} 6. Nc3 {[%emt 0:00:03]} g6 {[%emt 0:00:01]} 7. Bf4 {[%emt 0:00:02]} Bg7 {[%emt 0:00:03]} 8. e3 {[%emt 0:00:04]} O-O {[%emt 0:00:03]} 9. h3 {[%emt 0:00:01]} a6 {[%emt 0:00:03]} 10. a4 {[%emt 0:00:02]} Qe7 {[%emt 0:00:18]} 11. Nd2 {[%emt 0:00:05]} Nbd7 {[%emt 0:00:27]} 12. Nc4 {[%emt 0:00:08]} Ne8 {[%emt 0:00:02]} 13. Be2 {[%emt 0:00:14]} Rb8 {[%emt 0:00:24]} 14. a5 {[%emt 0:00:11]} Ne5 {[%emt 0:00:20]} 15. Nb6 {[%emt 0:01:04]} Nc7 {[%emt 0:00:36]} 16. Qb3 {[%emt 0:00:31]} g5 {[%emt 0:01:15]} 17. Bh2 {[%emt 0:00:14]} f5 {[%emt 0:00:02]} 18. Nxc8 {[%emt 0:01:36]} Rfxc8 {[%emt 0:00:30]} 19. O-O {[%emt 0:00:15]} Ng6 {[%emt 0:00:52]} 20. Na4 {[%emt 0:01:40]} f4 {[%emt 0:00:27]} 21. Nxc5 {[%emt 0:01:58]} Kh8 {[%emt 0:01:51]} 22. Rad1 {[%emt 0:02:09]} dxc5 {[%emt 0:00:35]} 23. d6 {[%emt 0:00:02]} Qe5 {[%emt 0:00:06]} 24. dxc7 {[%emt 0:00:06]} Qxc7 {[%emt 0:00:09]} 25. Bh5 {[%emt 0:00:53]} c4 {[%emt 0:01:34]} 26. Qa3 {[%emt 0:00:45]} Nh4 {[%emt 0:00:33]} 27. Rd5 {[%emt 0:00:55]} Qc6 {[%emt 0:00:41]} 28. e4 {[%emt 0:00:43]} Rf8 {[%emt 0:00:22]} 29. Re1 {[%emt 0:02:13]} h6 {[%emt 0:00:45]} 30. g3 {[%emt 0:00:30]} fxg3 {[%emt 0:00:27]} 31. fxg3 {[%emt 0:00:00]} Qf6 {[%emt 0:00:17]} 32. Qe3 {[%emt 0:00:52]} Nf3+ {[%emt 0:00:35]} 33. Bxf3 {[%emt 0:00:01]} Qxf3 {[%emt 0:00:02]} 34. g4 {[%emt 0:00:15]} Rbe8 {[%emt 0:00:23]} 35. Qxf3 {[%emt 0:00:05]} Rxf3 {[%emt 0:00:02]} 36. Kg2 {[%emt 0:00:03]} Rb3 {[%emt 0:00:07]} 37. Re2 {[%emt 0:00:06]} Rxb2 {[%emt 0:00:14]} 38. Rxb2 {[%emt 0:00:05]} Bxb2 {[%emt 0:00:01]} 39. e5 {[%emt 0:00:03]} Kg8 {[%emt 0:00:21]} 40. Rc5 {[%emt 0:00:01]} c3 {[%emt 0:00:09]} 41. Bg1 {[%emt 0:00:05]} Rd8 {[%emt 0:00:31]} 42. Be3 {[%emt 0:00:05]} Kf7 {[%emt 0:00:09]} 43. Kf3 {[%emt 0:00:01]} Ke6 {[%emt 0:00:08]} 44. Ke4 {[%emt 0:00:16]} Rd1 {[%emt 0:00:24]} 45. Rc7 {[%emt 0:00:08]} Rd5 {[%emt 0:00:05]} 46. Rxb7 {[%emt 0:00:07]} Rxe5+ {[%emt 0:00:01]} 47. Kf3 {[%emt 0:00:01]} Rxa5 {[%emt 0:00:10]} 48. Rb6+ {[%emt 0:00:03]} Kd5 {[%emt 0:00:02]} 49. Rxh6 {[%emt 0:00:02]} c2 {[%emt 0:00:24]} 50. Rg6 {[%emt 0:00:01]} Ra3 {[%emt 0:00:54]} 51. Rxg5+ {[%emt 0:00:02]} Kd6 {[%emt 0:00:00]} 52. Rg6+ {[%emt 0:00:09]} Kd7 {[%emt 0:00:02]} 0-1

[Event "RLP-ch Rapid 2024"]
[Site "Landau"]
[Date "2024.05.04"]
[Round "3.6"]
[White "Lang, Matthias"]
[Black "Baerwinkel, Tobias"]
[Result "0-1"]
[ECO "B90"]
[WhiteElo "2134"]
[BlackElo "2289"]
[Annotator "TA"]
[PlyCount "59"]
[EventDate "2024.05.03"]
[EventType "swiss"]
[EventCountry "GER"]
[SourceTitle "playchess.com"]
[Source "ChessBase"]
[SourceQuality "1"]
[TimeControl "900+5"]

{[%evp 18,59,37,29,31,-22,17,0,10,-25,-17,-48,-14,-36,0,-190,-198,-200,-188,-187,-189,-195,-193,-201,-192,-256,-264,-256,-185,-162,-177,-419,-344,-411,-425,-652,-397,-591,-566,-569,-521,-516,-527,-727]} 1. e4 {[%emt 0:00:05]} c5 {[%emt 0:00:02]} 2. Nf3 {[%emt 0:00:00]} d6 {[%emt 0:00:01]} 3. d4 {[%emt 0:00:09]} cxd4 {[%emt 0:00:02]} 4. Nxd4 {[%emt 0:00:02]} Nf6 {[%emt 0:00:01]} 5. Nc3 {[%emt 0:00:02]} a6 {[%emt 0:00:01]} 6. Be3 {[%emt 0:00:04]} e5 {[%emt 0:00:06]} 7. Nb3 {[%emt 0:00:01]} Be7 {[%emt 0:00:04]} 8. f3 {[%emt 0:00:02]} Be6 {[%emt 0:00:04]} 9. Qd2 {[%emt 0:00:13]} h5 {[%emt 0:00:03]} 10. Be2 {[%emt 0:01:24]} Nbd7 {[%emt 0:00:11]} 11. O-O {[%emt 0:00:14]} (11. Nd5 $14) 11... O-O {[%emt 0:01:28]} 12. Rfd1 {[%emt 0:00:20]} Rc8 {[%emt 0:00:39] The position is equal.} 13. Bg5 {[%emt 0:02:22]} b5 {[%emt 0:00:41]} 14. Bf1 {[%emt 0:02:01]} Re8 {[%emt 0:02:50][%cal Of6g4]} (14... b4 $5 15. Na4 $8 d5 (15... Nxe4 16. Bxe7 Nxd2 17. Bxd8 $11) 16. exd5 Nxd5 17. Bxe7 Qxe7 $11) 15. Be3 {[%emt 0:01:13]} Nb6 {[%emt 0:00:39]} 16. Na5 $2 {[%emt 0:00:51] [#]} (16. Qf2 $11 Nc4 17. Bxc4 Rxc4 18. Rd2) 16... d5 $19 {[%emt 0:00:47]} 17. Nxd5 {[%emt 0:00:53]} Nbxd5 {[%emt 0:00:25]} 18. exd5 {[%emt 0:00:03]} Nxd5 {[%emt 0:00:04]} 19. Nb3 {[%emt 0:01:07]} Qc7 {[%emt 0:00:30]} 20. Bf2 {[%emt 0:01:58]} Qxc2 {[%emt 0:00:13]} 21. Qa5 {[%emt 0:00:34]} (21. Qxc2 $142 Rxc2 22. Rab1) 21... Qxb2 {[%emt 0:01:48]} 22. Qxa6 {[%emt 0:01:20]} b4 {[%emt 0:00:16]} 23. Rd2 {[%emt 0:00:19]} Qa3 {[%emt 0:00:16]} 24. Qd3 $2 {[%emt 0:01:14]} (24. Bc4 Nc7 25. Qxa3 bxa3 26. Bxe6 Nxe6 27. Be3) 24... Rc3 {[%emt 0:00:17]} 25. Qb1 {[%emt 0:00:22]} Ra8 {[%emt 0:00:16][%cal Oc3b3] [#] Hoping for ...Rxb3!} 26. Nc1 {[%emt 0:00:14]} (26. Rd1 $142 Ne3 27. Bxe3 Rxe3 28. Qc1) 26... g6 {[%emt 0:00:09] ...Bg5 would now be deadly.} 27. Qb2 {[%emt 0:00:04]} (27. Ne2 {might work better.}) 27... Bg5 {[%emt 0:00:19] Black is clearly winning.} 28. Qxa3 {[%emt 0:00:08]} bxa3 {[%emt 0:00:32]} 29. Rd1 {[%emt 0:00:05]} Ne3 {[%emt 0:00:07]} 30. Bxe3 {[%emt 0:00:11] White got outplayed after the opening.   Weighted Error Value: White=0.62/Black=0.34.  Loses game:     	White=1     	---        Mistake:       	White=5     	---        Inaccurate:     	White=3     	Black=4      OK:         	White=4     	Black=8      Best:        	White=2     	---} 0-1

[Event "RLP-ch Rapid 2024"]
[Site "Landau"]
[Date "2024.05.04"]
[Round "3.7"]
[White "Boder, Jan"]
[Black "Vogel, Johannes"]
[Result "1-0"]
[ECO "A29"]
[WhiteElo "2318"]
[BlackElo "2169"]
[Annotator "RC"]
[PlyCount "201"]
[EventDate "2024.05.03"]
[EventType "swiss"]
[EventCountry "GER"]
[SourceTitle "playchess.com"]
[Source "ChessBase"]
[SourceQuality "1"]
[TimeControl "900+5"]

1. c4 {[%emt 0:00:01]} e5 {[%emt 0:00:05]} 2. g3 {[%emt 0:00:01]} Nf6 {[%emt 0:00:02]} 3. Bg2 {[%emt 0:00:01]} d5 {[%emt 0:00:06]} 4. cxd5 {[%emt 0:00:01]} Nxd5 {[%emt 0:00:02]} 5. Nc3 {[%emt 0:00:02]} Nb6 {[%emt 0:00:01]} 6. Nf3 {[%emt 0:00:02]} Nc6 {[%emt 0:00:01]} 7. Rb1 {[%emt 0:00:03]} Bf5 {[%emt 0:01:34]} 8. d3 {[%emt 0:00:03]} Qd7 {[%emt 0:00:12]} 9. O-O {[%emt 0:00:40]} Bh3 {[%emt 0:00:49]} 10. b4 {[%emt 0:05:28]} f6 {[%emt 0:02:11]} 11. b5 {[%emt 0:00:22]} Ne7 {[%emt 0:01:59]} 12. a4 {[%emt 0:00:23]} h5 {[%emt 0:00:33]} 13. d4 {[%emt 0:02:32]} Bxg2 {[%emt 0:02:07]} 14. Kxg2 {[%emt 0:06:36]} exd4 {[%emt 0:00:35]} 15. Qxd4 {[%emt 0:00:00]} Qxd4 {[%emt 0:00:35]} 16. Nxd4 {[%emt 0:00:00]} h4 {[%emt 0:00:01]} 17. Ne6 {[%emt 0:00:00]} Kf7 {[%emt 0:00:13]} 18. Nc5 {[%emt 0:00:00]} Rb8 {[%emt 0:00:36]} 19. Rd1 {[%emt 0:00:00]} Ng6 {[%emt 0:01:43]} 20. Nd7 {[%emt 0:00:00]} Rc8 {[%emt 0:00:03]} 21. Be3 {[%emt 0:00:00]} Be7 {[%emt 0:01:06]} 22. Nc5 {[%emt 0:00:00]} Bxc5 {[%emt 0:00:11]} 23. Bxc5 {[%emt 0:00:00]} hxg3 {[%emt 0:00:38]} 24. hxg3 {[%emt 0:00:00]} Rh5 {[%emt 0:00:02]} 25. Bxb6 {[%emt 0:00:00]} axb6 {[%emt 0:00:06]} 26. Rd7+ {[%emt 0:00:14]} Ne7 {[%emt 0:00:30]} 27. Rbd1 {[%emt 0:00:07]} Ke8 {[%emt 0:00:22]} 28. g4 {[%emt 0:00:11]} Rc5 {[%emt 0:00:01]} 29. Ne4 {[%emt 0:00:15]} Rc4 {[%emt 0:00:02]} 30. R7d4 {[%emt 0:00:02]} Rxd4 {[%emt 0:00:08]} 31. Rxd4 {[%emt 0:00:01]} Rd8 {[%emt 0:00:01]} 32. Rc4 {[%emt 0:00:01]} c5 {[%emt 0:00:07]} 33. g5 {[%emt 0:00:25]} Nd5 {[%emt 0:00:12]} 34. gxf6 {[%emt 0:00:05]} gxf6 {[%emt 0:00:01]} 35. Kf3 {[%emt 0:00:04]} Ke7 {[%emt 0:00:02]} 36. a5 {[%emt 0:00:01]} bxa5 {[%emt 0:00:11]} 37. Nxc5 {[%emt 0:00:02]} b6 {[%emt 0:01:02]} 38. Re4+ {[%emt 0:00:01]} Kf7 {[%emt 0:00:00]} 39. Na4 {[%emt 0:00:07]} Rd6 {[%emt 0:00:00]} 40. Rd4 {[%emt 0:00:05]} f5 {[%emt 0:00:00]} 41. Nxb6 {[%emt 0:00:16]} Rxb6 {[%emt 0:00:00]} 42. Rxd5 {[%emt 0:00:00]} Ke6 {[%emt 0:00:00]} 43. Rc5 {[%emt 0:00:01]} a4 {[%emt 0:00:00]} 44. Rc4 {[%emt 0:00:05]} Rxb5 {[%emt 0:00:09]} 45. Rxa4 {[%emt 0:00:00]} Ke5 {[%emt 0:00:03]} 46. e3 {[%emt 0:00:01]} Rc5 {[%emt 0:00:01]} 47. Ra8 {[%emt 0:00:02]} Rc4 {[%emt 0:00:04]} 48. Ra5+ {[%emt 0:00:03]} Kf6 {[%emt 0:00:01]} 49. Rd5 {[%emt 0:00:01]} Rh4 {[%emt 0:00:05]} 50. Rd4 {[%emt 0:00:09]} Rh3+ {[%emt 0:00:03]} 51. Kg2 {[%emt 0:00:00]} Rh8 {[%emt 0:00:03]} 52. Rf4 {[%emt 0:00:01]} Ke5 {[%emt 0:00:07]} 53. Kf3 {[%emt 0:00:03]} Rh3+ {[%emt 0:00:03]} 54. Ke2 {[%emt 0:00:01]} Rh8 {[%emt 0:00:01]} 55. Ra4 {[%emt 0:00:01]} Rb8 {[%emt 0:00:02]} 56. Ra5+ {[%emt 0:00:02]} Kf6 {[%emt 0:00:02]} 57. Kf3 {[%emt 0:00:06]} Rb4 {[%emt 0:00:01]} 58. Rd5 {[%emt 0:00:07]} Rh4 {[%emt 0:00:05]} 59. Rd8 {[%emt 0:00:03]} Rh7 {[%emt 0:00:07]} 60. Rf8+ {[%emt 0:00:03]} Ke5 {[%emt 0:00:04]} 61. Ke2 {[%emt 0:00:03]} Rd7 {[%emt 0:00:14]} 62. Rh8 {[%emt 0:00:15]} Rb7 {[%emt 0:00:03]} 63. Rh4 {[%emt 0:00:05]} Rb2+ {[%emt 0:00:15]} 64. Kf3 {[%emt 0:00:01]} Rb3 {[%emt 0:00:03]} 65. Kg3 {[%emt 0:00:02]} Ra3 {[%emt 0:00:02]} 66. Rf4 {[%emt 0:00:01]} Ra8 {[%emt 0:00:06]} 67. Kh4 {[%emt 0:00:49]} Rh8+ {[%emt 0:00:12]} 68. Kg5 {[%emt 0:00:01]} Rg8+ {[%emt 0:00:01]} 69. Kh6 {[%emt 0:00:01]} Rg1 {[%emt 0:00:02]} 70. Rf3 {[%emt 0:00:07]} Ke4 {[%emt 0:00:07]} 71. Rf4+ {[%emt 0:00:01]} Ke5 {[%emt 0:00:01]} 72. Kh5 {[%emt 0:00:00]} Rg2 {[%emt 0:00:03]} 73. Kh4 {[%emt 0:00:12]} Rg1 {[%emt 0:00:03]} 74. Rf3 {[%emt 0:00:05]} Rg8 {[%emt 0:00:15]} 75. Kh3 {[%emt 0:00:07]} Rg7 {[%emt 0:00:10]} 76. Rg3 {[%emt 0:00:04]} Rc7 {[%emt 0:00:00]} 77. Rg5 {[%emt 0:00:05]} Kf6 {[%emt 0:00:11]} 78. Rh5 {[%emt 0:00:01]} Ke5 {[%emt 0:00:05]} 79. Kg3 {[%emt 0:00:04]} Rg7+ {[%emt 0:00:02]} 80. Kf3 {[%emt 0:00:01]} Rg4 {[%emt 0:00:02]} 81. Rh8 {[%emt 0:00:19]} Ra4 {[%emt 0:00:03]} 82. Rh7 {[%emt 0:00:02]} Rb4 {[%emt 0:00:02]} 83. Rh6 {[%emt 0:00:08]} Ra4 {[%emt 0:00:04]} 84. Kg3 {[%emt 0:00:01]} Rg4+ {[%emt 0:00:11]} 85. Kh3 {[%emt 0:00:06]} Rg1 {[%emt 0:00:11]} 86. f4+ {[%emt 0:00:11]} Kd5 {[%emt 0:00:09]} 87. Rf6 {[%emt 0:00:04]} Ke4 {[%emt 0:00:10]} 88. Re6+ {[%emt 0:00:01]} Kf3 {[%emt 0:00:01]} 89. Kh4 {[%emt 0:00:03]} Rg8 {[%emt 0:00:15]} 90. Kh5 {[%emt 0:00:02]} Rg1 {[%emt 0:00:11]} 91. Re5 {[%emt 0:00:13]} Rg2 {[%emt 0:00:06]} 92. Rxf5 {[%emt 0:00:22]} Kxe3 {[%emt 0:00:01]} 93. Rg5 {[%emt 0:00:00]} Rh2+ {[%emt 0:00:02]} 94. Kg4 {[%emt 0:00:01]} Ke4 {[%emt 0:00:08]} 95. Re5+ {[%emt 0:00:01]} Kd4 {[%emt 0:00:00]} 96. Re8 {[%emt 0:00:01]} Kd5 {[%emt 0:00:07]} 97. Kf5 {[%emt 0:00:01]} Kd6 {[%emt 0:00:01]} 98. Re1 {[%emt 0:00:02]} Rg2 {[%emt 0:00:15]} 99. Kf6 {[%emt 0:00:02]} Rg3 {[%emt 0:00:05]} 100. Rd1+ {[%emt 0:00:02]} Kc7 {[%emt 0:00:01]} 101. f5 {[%emt 0:00:01]} 1-0

[Event "RLP-ch Rapid 2024"]
[Site "Landau"]
[Date "2024.05.04"]
[Round "3.8"]
[White "Meuer, David"]
[Black "Yakovenko, Oleg"]
[Result "1-0"]
[ECO "B70"]
[WhiteElo "2067"]
[BlackElo "2281"]
[Annotator "RC"]
[PlyCount "147"]
[EventDate "2024.05.03"]
[EventType "swiss"]
[EventCountry "GER"]
[SourceTitle "playchess.com"]
[Source "ChessBase"]
[SourceQuality "1"]
[TimeControl "900+5"]

1. e4 {[%emt 0:00:01]} c5 {[%emt 0:00:00]} 2. Nf3 {[%emt 0:00:01]} d6 {[%emt 0:00:01]} 3. d4 {[%emt 0:00:01]} cxd4 {[%emt 0:00:01]} 4. Nxd4 {[%emt 0:00:01]} Nf6 {[%emt 0:00:01]} 5. Nc3 {[%emt 0:00:01]} a6 {[%emt 0:00:01]} 6. Qf3 {[%emt 0:00:01]} g6 {[%emt 0:00:14]} 7. h3 {[%emt 0:00:03]} Bg7 {[%emt 0:00:02]} 8. Be3 {[%emt 0:00:03]} O-O {[%emt 0:00:15]} 9. O-O-O {[%emt 0:00:05]} Bd7 {[%emt 0:00:19]} 10. g4 {[%emt 0:00:22]} Nc6 {[%emt 0:00:09]} 11. Qg2 {[%emt 0:00:05]} Nxd4 {[%emt 0:00:09]} 12. Bxd4 {[%emt 0:00:02]} Bc6 {[%emt 0:00:05]} 13. Nd5 {[%emt 0:00:58]} Rc8 {[%emt 0:01:30]} 14. Kb1 {[%emt 0:02:10]} Bb5 {[%emt 0:02:45]} 15. h4 {[%emt 0:01:26]} Bxf1 {[%emt 0:00:43]} 16. Rhxf1 {[%emt 0:00:08]} Nxd5 {[%emt 0:00:13]} 17. exd5 {[%emt 0:00:28]} Bxd4 {[%emt 0:00:37]} 18. Rxd4 {[%emt 0:00:01]} Qc7 {[%emt 0:01:15]} 19. Qe4 {[%emt 0:00:08]} Rce8 {[%emt 0:00:30]} 20. h5 {[%emt 0:00:41]} e5 {[%emt 0:00:07]} 21. Rd2 {[%emt 0:00:46]} f5 {[%emt 0:00:09]} 22. gxf5 {[%emt 0:00:19]} gxf5 {[%emt 0:00:02]} 23. Qe3 {[%emt 0:01:13]} Kh8 {[%emt 0:00:29]} 24. Qh6 {[%emt 0:00:47]} Qe7 {[%emt 0:00:46]} 25. Rd3 {[%emt 0:01:03]} Qf6 {[%emt 0:00:19]} 26. Qe3 {[%emt 0:00:39]} f4 {[%emt 0:00:18]} 27. Qa7 {[%emt 0:00:27]} Qe7 {[%emt 0:01:33]} 28. f3 {[%emt 0:00:29]} Rf7 {[%emt 0:00:54]} 29. Qb6 {[%emt 0:01:06]} Qc7 {[%emt 0:00:13]} 30. Qf2 {[%emt 0:00:12]} Rg8 {[%emt 0:00:08]} 31. Rdd1 {[%emt 0:00:36]} Rfg7 {[%emt 0:00:10]} 32. Qh4 {[%emt 0:01:20]} Qe7 {[%emt 0:00:12]} 33. Qh3 {[%emt 0:00:19]} Qd7 {[%emt 0:00:37]} 34. Qh4 {[%emt 0:00:05]} Qf5 {[%emt 0:00:05]} 35. h6 {[%emt 0:00:20]} Rg5 {[%emt 0:00:18]} 36. a3 {[%emt 0:00:36]} Qg6 {[%emt 0:00:23]} 37. Rd3 {[%emt 0:00:17]} Qf7 {[%emt 0:01:02]} 38. Qf2 {[%emt 0:00:17]} Qc7 {[%emt 0:00:10]} 39. Rc3 {[%emt 0:00:04]} Qa5 {[%emt 0:00:10]} 40. Qa7 {[%emt 0:00:12]} Qxd5 {[%emt 0:00:10]} 41. Rd3 {[%emt 0:00:02]} Qc6 {[%emt 0:00:10]} 42. Rfd1 {[%emt 0:00:02]} R5g6 {[%emt 0:00:14]} 43. Rb3 {[%emt 0:00:07]} b5 {[%emt 0:00:20]} 44. Rc3 {[%emt 0:00:03]} Qe8 {[%emt 0:00:23]} 45. Qxa6 {[%emt 0:00:06]} d5 {[%emt 0:00:12]} 46. Qb7 {[%emt 0:00:10]} d4 {[%emt 0:00:14]} 47. Rc5 {[%emt 0:00:16]} Rxh6 {[%emt 0:00:04]} 48. Re1 {[%emt 0:00:08]} Re6 {[%emt 0:00:23]} 49. Rc7 {[%emt 0:00:03]} Qg6 {[%emt 0:00:00]} 50. Rh1 {[%emt 0:00:10]} h6 {[%emt 0:00:00]} 51. Ka2 {[%emt 0:00:08]} d3 {[%emt 0:00:05]} 52. Rg1 {[%emt 0:00:03]} Qf5 {[%emt 0:00:09]} 53. Rxg8+ {[%emt 0:00:11]} Kxg8 {[%emt 0:00:01]} 54. Qb8+ {[%emt 0:00:04]} Qf8 {[%emt 0:00:03]} 55. Rc8 {[%emt 0:00:02]} Rf6 {[%emt 0:00:06]} 56. Rxf8+ {[%emt 0:00:03]} Rxf8 {[%emt 0:00:01]} 57. Qxe5 {[%emt 0:00:03]} dxc2 {[%emt 0:00:04]} 58. Qc3 {[%emt 0:00:09]} Re8 {[%emt 0:00:10]} 59. Qxc2 {[%emt 0:00:04]} Re6 {[%emt 0:00:09]} 60. Qb3 {[%emt 0:00:03]} Kf7 {[%emt 0:00:01]} 61. Qxb5 {[%emt 0:00:01]} Kf6 {[%emt 0:00:01]} 62. Qh5 {[%emt 0:00:05]} Kg7 {[%emt 0:00:03]} 63. Qg4+ {[%emt 0:00:02]} Rg6 {[%emt 0:00:02]} 64. Qxf4 {[%emt 0:00:02]} h5 {[%emt 0:00:01]} 65. a4 {[%emt 0:00:03]} Rh6 {[%emt 0:00:03]} 66. Qh4 {[%emt 0:00:02]} Kg6 {[%emt 0:00:08]} 67. a5 {[%emt 0:00:01]} Rh7 {[%emt 0:00:01]} 68. a6 {[%emt 0:00:04]} Rf7 {[%emt 0:00:10]} 69. f4 {[%emt 0:00:06]} Ra7 {[%emt 0:00:03]} 70. Qg5+ {[%emt 0:00:03]} Kf7 {[%emt 0:00:03]} 71. Qxh5+ {[%emt 0:00:02]} Ke6 {[%emt 0:00:10]} 72. Qe5+ {[%emt 0:00:01]} Kf7 {[%emt 0:00:02]} 73. Qd5+ {[%emt 0:00:04]} Kg6 {[%emt 0:00:05]} 74. Qb7 {[%emt 0:00:02]} 1-0

[Event "RLP-ch Rapid 2024"]
[Site "Landau"]
[Date "2024.05.04"]
[Round "3.9"]
[White "Anissimova, Mariya"]
[Black "Mader, Lena"]
[Result "0-1"]
[ECO "B12"]
[WhiteElo "1850"]
[BlackElo "1902"]
[Annotator "NA RC"]
[PlyCount "100"]
[EventDate "2024.05.03"]
[EventType "swiss"]
[EventCountry "GER"]
[SourceTitle "playchess.com"]
[Source "ChessBase"]
[SourceQuality "1"]
[TimeControl "900+5"]

1. e4 {[%emt 0:00:02]} c6 {[%emt 0:00:00]} 2. d4 {[%emt 0:00:02]} d5 {[%emt 0:00:01]} 3. e5 {[%emt 0:00:01]} Bf5 {[%emt 0:00:01]} 4. c4 {[%emt 0:00:01]} dxc4 {[%emt 0:00:26]} 5. Bxc4 {[%emt 0:00:02]} e6 {[%emt 0:00:00]} 6. Nc3 {[%emt 0:00:07]} Ne7 {[%emt 0:00:11]} 7. Nge2 {[%emt 0:00:33]} Nd5 {[%emt 0:00:22]} 8. Nxd5 {[%emt 0:01:02]} cxd5 {[%emt 0:01:25]} 9. Bb5+ {[%emt 0:01:09]} Nd7 {[%emt 0:00:32]} 10. O-O {[%emt 0:00:06]} Be7 {[%emt 0:00:13]} 11. Be3 {[%emt 0:02:26]} O-O {[%emt 0:00:17]} 12. Bd3 {[%emt 0:01:11]} Bxd3 {[%emt 0:02:08]} 13. Qxd3 {[%emt 0:00:02]} Nb6 {[%emt 0:00:01]} 14. Rac1 {[%emt 0:00:17]} Rc8 {[%emt 0:00:16]} 15. Rxc8 {[%emt 0:01:24]} Qxc8 {[%emt 0:00:01]} 16. Rc1 {[%emt 0:00:03]} Qd7 {[%emt 0:00:02]} 17. b3 {[%emt 0:00:17]} Rc8 {[%emt 0:00:03]} 18. Rc2 {[%emt 0:00:07]} Rc6 {[%emt 0:00:47]} 19. f4 {[%emt 0:01:36]} Qc8 {[%emt 0:01:38]} 20. Rxc6 {[%emt 0:00:27]} bxc6 {[%emt 0:00:10]} 21. Qc2 {[%emt 0:00:13]} a5 {[%emt 0:00:48]} 22. Nc1 {[%emt 0:00:42]} Nd7 {[%emt 0:02:02]} 23. Nd3 {[%emt 0:00:09]} Qa6 {[%emt 0:00:14]} 24. Nb2 {[%emt 0:00:53]} g6 {[%emt 0:00:32]} 25. Kf2 {[%emt 0:00:56]} Qb5 {[%emt 0:01:03]} 26. Na4 {[%emt 0:00:40]} Bb4 {[%emt 0:00:36]} 27. g4 {[%emt 0:00:39]} Kg7 {[%emt 0:00:08]} 28. f5 {[%emt 0:00:16]} exf5 {[%emt 0:01:54]} 29. gxf5 {[%emt 0:00:02]} Bf8 {[%emt 0:00:13]} 30. f6+ {[%emt 0:00:22]} Kg8 {[%emt 0:00:01]} 31. Qc1 {[%emt 0:01:12]} h5 {[%emt 0:00:08]} 32. Bh6 {[%emt 0:00:33]} Kh7 {[%emt 0:00:10]} 33. Bxf8 {[%emt 0:00:04]} Nxf8 {[%emt 0:00:00]} 34. Qc3 {[%emt 0:00:06]} Nd7 {[%emt 0:00:04]} 35. Nb2 {[%emt 0:00:07]} c5 {[%emt 0:00:04]} 36. Nd3 {[%emt 0:00:03]} cxd4 {[%emt 0:00:17]} 37. Qxd4 {[%emt 0:00:02]} Qc6 {[%emt 0:00:28]} 38. Ke3 {[%emt 0:00:03]} Qe6 {[%emt 0:00:09]} 39. Qf4 {[%emt 0:00:03]} Qh3+ {[%emt 0:00:21]} 40. Kd4 {[%emt 0:00:02]} Qg2 {[%emt 0:00:19]} 41. a4 {[%emt 0:00:16]} Nb6 {[%emt 0:00:25]} 42. e6 {[%emt 0:00:02]} Qg1+ {[%emt 0:00:00]} 43. Nf2 {[%emt 0:00:05]} fxe6 {[%emt 0:00:00]} 44. f7 {[%emt 0:00:01]} Nd7 {[%emt 0:00:03]} 45. f8=Q {[%emt 0:00:24]} Nxf8 {[%emt 0:00:02]} 46. Qxf8 {[%emt 0:00:00]} Qg4+ {[%emt 0:00:04]} 47. Kc5 {[%emt 0:00:00]} d4 {[%emt 0:00:06]} 48. Qf7+ {[%emt 0:00:00]} Kh6 {[%emt 0:00:02]} 49. Qxe6 {[%emt 0:00:00]} Qxe6 {[%emt 0:00:00]} 50. Kxd4 {[%emt 0:00:00]} Qf6+ {[%emt 0:00:02]} 0-1